bitfinex/quotes_BTCUSD_20210402
["timestamp","ask_amount","ask_price","bid_price","bid_amount"]
[1617329152144,0.0005,58936.0,58935.0,4.13217642]
[1617329152341,0.0005,58936.0,58935.0,4.21217642]
[1617329152541,0.0281,58939.0,58936.0,2.05]
[1617329152741,0.0281,58939.0,58938.0,3.08442182]
[1617329152943,0.0231,58939.0,58938.0,3.08442182]
[1617329153140,0.0231,58939.0,58938.0,3.26031973]
[1617329153341,0.0231,58939.0,58938.0,3.33712399]
[1617329153541,0.0231,58939.0,58938.0,2.84404449]
[1617329153942,0.0231,58939.0,58938.0,2.94881191]
[1617329154354,0.0231,58939.0,58938.0,3.20325991]
[1617329154553,0.0231,58939.0,58938.0,3.77633818]
[1617329154752,0.0231,58939.0,58938.0,3.67157076]
[1617329154952,0.0231,58939.0,58938.0,3.77633818]
[1617329155153,0.0231,58939.0,58938.0,3.78087097]
[1617329156984,0.0231,58939.0,58938.0,1.96052506]
[1617329157183,0.0231,58939.0,58938.0,1.56901724]
[1617329157385,0.0231,58939.0,58938.0,1.43315687]
[1617329157585,1.0231,58939.0,58938.0,1.17870887]
[1617329157786,0.0231,58939.0,58938.0,0.01024287]
[1617329157985,1.06156458,58939.0,58938.0,0.01024287]
[1617329158184,1.06156458,58939.0,58938.0,0.10324287]
[1617329158384,2.06156458,58939.0,58938.0,0.01024287]
[1617329158586,2.50156458,58939.0,58938.0,0.01024287]
[1617329158789,2.44656458,58939.0,58938.0,0.01024287]
[1617329160403,2.60656458,58939.0,58938.0,0.01024287]
[1617329161002,2.44656458,58939.0,58938.0,0.01024287]
[1617329163632,2.61156458,58939.0,58938.0,0.01024287]
[1617329163833,2.71543544,58939.0,58938.0,0.01024287]
[1617329164631,2.55043544,58939.0,58938.0,0.01024287]
[1617329165261,1.55043544,58939.0,58938.0,0.01024287]
[1617329165460,2.23582686,58939.0,58938.0,0.01024287]
[1617329165661,2.22582686,58939.0,58938.0,0.01024287]
[1617329165860,1.121956,58939.0,58938.0,0.01024287]
[1617329166062,0.786566,58939.0,58938.0,0.01024287]
[1617329166461,1.00927868,58939.0,58938.0,0.01024287]
[1617329166665,0.786566,58939.0,58938.0,0.01024287]
[1617329167074,1.01042457,58939.0,58938.0,0.01024287]
[1617329167500,0.786566,58939.0,58938.0,0.01024287]
[1617329168698,1.00947309,58939.0,58938.0,0.01024287]
[1617329169299,2.00947309,58939.0,58938.0,0.01024287]
[1617329170514,2.16447309,58939.0,58938.0,0.01000337]
[1617329172115,2.00947309,58939.0,58938.0,0.01000337]
[1617329174140,0.786566,58939.0,58938.0,0.01000337]
[1617329174538,0.346566,58939.0,58938.0,0.01000337]
[1617329177169,0.001,58940.0,58938.0,0.01000337]
[1617329178393,1.71180823,58939.0,58930.0,0.002]
[1617329178592,1.20180823,58939.0,58930.0,0.002]
[1617329178791,1.20180823,58939.0,58930.0,0.007]
[1617329179591,1.20180823,58939.0,58930.0,0.002]
[1617329179791,1.20180823,58939.0,58930.0,0.00771053]
[1617329179992,0.215,58938.0,58930.0,0.00771053]
[1617329180394,1.20180823,58939.0,58930.0,0.00771053]
[1617329180620,0.388319,58938.0,58931.0,0.00483593]
[1617329181017,1.20180823,58939.0,58931.0,0.00483593]
[1617329181219,0.254535,58936.0,58931.0,0.00483593]
[1617329181619,0.249535,58936.0,58931.0,0.00483593]
[1617329183836,0.249535,58936.0,58932.0,0.10476742]
[1617329184439,0.83180823,58939.0,58933.0,0.08242788]
[1617329184639,0.83180823,58939.0,58932.0,0.10476742]
[1617329185239,0.83180823,58939.0,58931.0,0.00681094]
[1617329185439,0.83180823,58939.0,58932.0,0.00571036]
[1617329185639,1.08632723,58939.0,58932.0,0.00571036]
[1617329186072,0.23,58938.0,58932.0,0.00571036]
[1617329187274,0.83180823,58939.0,58932.0,0.00571036]
[1617329187674,0.25453,58937.0,58932.0,0.00571036]
[1617329190096,0.388319,58936.0,58932.0,0.00571036]
[1617329190297,0.563319,58936.0,58932.0,0.00571036]
[1617329191718,0.254533,58935.0,58932.0,0.00571036]
[1617329191916,0.245,58934.0,58932.0,0.00571036]
[1617329192315,0.27,58933.0,58932.0,0.00571036]
[1617329192717,0.388319,58933.0,58932.0,0.00571036]
[1617329193115,0.69888818,58933.0,58932.0,0.00571036]
[1617329193516,0.678319,58933.0,58932.0,0.00571036]
[1617329193746,0.98888818,58933.0,58932.0,0.00571036]
[1617329194143,0.678319,58933.0,58932.0,0.00571036]
[1617329194341,0.98888818,58933.0,58932.0,0.00571036]
[1617329194743,1.03888818,58933.0,58932.0,0.00571036]
[1617329195341,0.98888818,58933.0,58932.0,0.00571036]
[1617329195746,0.678319,58933.0,58932.0,0.00571036]
[1617329196142,0.98888818,58933.0,58932.0,0.00571036]
[1617329196857,0.678319,58933.0,58932.0,0.00571036]
[1617329197858,0.98888818,58933.0,58932.0,0.00571036]
[1617329198459,0.678319,58933.0,58932.0,0.00571036]
[1617329201722,0.98888818,58933.0,58932.0,0.00571036]
[1617329203122,0.678319,58933.0,58932.0,0.00571036]
[1617329208170,0.673319,58933.0,58932.0,0.00571036]
[1617329212047,0.388319,58933.0,58932.0,0.00571036]
[1617329212237,0.254556,58934.0,58932.0,0.00571036]
[1617329213236,0.128067,58942.0,58932.0,0.00571036]
[1617329213635,0.005,58940.0,58932.0,0.00571036]
[1617329214037,0.75376413,58939.0,58932.0,0.00571036]
[1617329214239,0.254534,58937.0,58932.0,0.00571036]
[1617329216044,0.254534,58937.0,58936.0,0.01981139]
[1617329216447,0.254534,58937.0,58932.0,0.00571036]
[1617329217469,0.254534,58937.0,58933.0,0.39150782]
[1617329217671,0.254534,58937.0,58935.0,0.39150782]
[1617329217871,0.254534,58937.0,58936.0,0.47102342]
[1617329218071,0.254534,58937.0,58936.0,0.08270442]
[1617329218672,0.254534,58937.0,58936.0,0.56341472]
[1617329219072,0.75376413,58939.0,58936.0,0.56341472]
[1617329219476,0.75376413,58939.0,58937.0,0.10259758]
[1617329219673,0.75376413,58939.0,58936.0,0.4807103]
[1617329219894,0.75376413,58939.0,58937.0,0.885]
[1617329220296,0.023638,58944.0,58940.0,2.05]
[1617329220496,0.0114,58950.0,58942.0,0.388319]
[1617329220701,0.0014,58954.0,58944.0,0.390319]
[1617329220899,0.0013,58960.0,58950.0,0.12211675]
[1617329221102,0.1474,58967.0,58960.0,2.05]
[1617329221299,0.0012,58975.0,58965.0,0.16262394]
[1617329221300,0.0014,58968.0,58965.0,0.16262394]
[1617329221504,0.0012,58975.0,58968.0,1.81]
[1617329221505,0.0004,58969.0,58968.0,1.81]
[1617329221701,0.0004,58973.0,58969.0,1.81]
[1617329221902,0.0008,58975.0,58971.0,0.515459]
[1617329222098,0.0008,58975.0,58974.0,2.53512003]
[1617329222299,0.0014,58977.0,58976.0,0.3]
[1617329222535,0.0006,58980.0,58978.0,0.3]
[1617329222729,0.0006,58980.0,58979.0,2.882319]
[1617329222927,0.0021992,58997.0,58979.0,2.882319]
[1617329223129,0.0021992,58997.0,58984.0,0.34]
[1617329223328,0.0021992,58997.0,58987.0,2.59590852]
[1617329223528,0.0021992,58997.0,58987.0,3.41573534]
[1617329223529,0.0004,58989.0,58987.0,3.41573534]
[1617329223729,0.0021992,58997.0,58988.0,2.2858722]
[1617329223930,0.0021992,58997.0,58990.0,0.3]
[1617329224131,0.0008,58997.0,58993.0,2.728319]
[1617329224332,5.16031529,59000.0,58998.0,0.09705131]
[1617329224530,5.16031529,59000.0,58999.0,2.428319]
[1617329224731,2.4562768,59000.0,58999.0,1.96226096]
[1617329224932,2.4562768,59000.0,58999.0,2.48438637]
[1617329224933,2.2789268,59000.0,58999.0,2.48438637]
[1617329225151,1.0175268,59000.0,58999.0,1.99400986]
[1617329225350,0.37752407,59000.0,58999.0,2.24261995]
[1617329225549,0.37432407,59000.0,58999.0,2.47951919]
[1617329225748,0.0014,59011.0,58999.0,2.72951919]
[1617329225948,0.1476,59012.0,59000.0,0.75757396]
[1617329226149,0.00331612,59019.0,59000.0,0.75757396]
[1617329226355,0.0014,59030.0,59000.0,0.75757396]
[1617329226356,0.0014,59030.0,59012.0,0.1448941]
[1617329226553,0.0014,59030.0,59015.0,0.388319]
[1617329226751,0.0014,59030.0,59028.0,0.3]
[1617329226973,0.0009952,59031.0,59028.0,0.69150782]
[1617329227172,0.0004,59032.0,59030.0,0.39150782]
[1617329227373,0.0779992,59033.0,59031.0,0.388319]
[1617329227570,0.0779992,59033.0,59032.0,0.39150782]
[1617329227794,1.4079992,59033.0,59030.0,0.39130782]
[1617329227986,0.0779992,59033.0,59030.0,0.38130782]
[1617329228184,0.0779992,59033.0,59031.0,0.388319]
[1617329228388,0.0765992,59033.0,59032.0,0.94238197]
[1617329228587,0.02578574,59034.0,59032.0,0.98238197]
[1617329228791,0.0008,59042.0,59033.0,0.87771448]
[1617329228987,0.0008,59042.0,59033.0,1.17578863]
[1617329229189,0.0354,59039.0,59035.0,0.388319]
[1617329229389,0.0354,59039.0,59038.0,0.54130782]
[1617329229587,0.0354,59039.0,59038.0,0.63938227]
[1617329229788,0.0008,59042.0,59039.0,0.38130782]
[1617329229990,0.0008,59042.0,59040.0,0.388319]
[1617329230187,0.0008,59045.0,59039.0,0.38070075]
[1617329230420,0.0014,59051.0,59039.0,0.38070075]
[1617329230421,0.0014,59051.0,59044.0,0.16898555]
[1617329230609,0.254042,59047.0,59044.0,0.16898555]
[1617329230813,2.438319,59045.0,59044.0,0.16898555]
[1617329231011,2.594319,59045.0,59042.0,0.1]
[1617329231211,0.292534,59043.0,59039.0,0.1]
[1617329231410,1.31022646,59044.0,59039.0,0.1]
[1617329231411,2.443319,59040.0,59039.0,0.1]
[1617329231609,3.88457504,59040.0,59039.0,0.1]
[1617329231812,2.05,59039.0,59012.0,0.168]
[1617329232014,0.005,59027.0,59012.0,0.168]
[1617329232210,0.00803724,59027.0,59012.0,0.168]
[1617329232408,0.005,59023.0,59012.0,0.168]
[1617329232808,0.005,59023.0,59013.0,0.388319]
[1617329233027,0.005,59023.0,59014.0,0.38070075]
[1617329233224,0.005,59023.0,59015.0,0.388319]
[1617329233427,0.254157,59020.0,59012.0,0.168]
[1617329233623,0.004,59020.0,59008.0,0.00303724]
[1617329233826,0.002,59025.0,59013.0,0.38070075]
[1617329234028,0.340711,59031.0,59019.0,0.10663525]
[1617329234224,0.340711,59031.0,59021.0,0.004]
[1617329234424,0.388319,59030.0,59019.0,0.10663525]
[1617329234626,0.254109,59036.0,59021.0,0.0042]
[1617329234826,0.254109,59036.0,59025.0,0.0058]
[1617329235027,0.388319,59035.0,59020.0,0.0042]
[1617329235228,0.254109,59036.0,59021.0,0.0054]
[1617329235425,0.254109,59036.0,59025.0,0.004]
[1617329235658,0.254109,59036.0,59026.0,0.004]
[1617329236257,0.0004,59054.0,59026.0,0.004]
[1617329236458,0.0014,59164.0,59030.0,0.006]
[1617329236459,0.0018,59041.0,59030.0,0.006]
[1617329236657,0.315535,59048.0,59045.0,0.006]
[1617329236858,1.07125301,59045.0,59029.0,0.6567079]
[1617329237056,1.07125301,59045.0,59028.0,0.168]
[1617329237057,0.292534,59044.0,59038.0,0.0042]
[1617329237257,0.388319,59040.0,59031.0,0.38373799]
[1617329237458,0.388319,59040.0,59032.0,0.0058]
[1617329237659,0.33951422,59044.0,59033.0,1.07]
[1617329237858,0.82216501,59045.0,59034.0,0.38070075]
[1617329238056,0.82216501,59045.0,59033.0,1.07]
[1617329238269,1.81716501,59045.0,59035.0,0.38070075]
[1617329238470,1.81716501,59045.0,59029.0,0.00303724]
[1617329238471,1.0,59044.0,59034.0,0.38070075]
[1617329238671,0.388319,59043.0,59035.0,0.005]
[1617329239069,0.388319,59043.0,59035.0,0.01070029]
[1617329239674,0.388319,59043.0,59035.0,0.00570029]
[1617329242388,0.388319,59043.0,59035.0,0.01179789]
[1617329243194,0.388319,59044.0,59038.0,0.60458]
[1617329243392,0.81716501,59045.0,59039.0,0.68070075]
[1617329243651,0.81716501,59045.0,59040.0,0.225]
[1617329243846,0.81716501,59045.0,59044.0,2.203]
[1617329244046,0.402205,59071.0,59044.0,1.351319]
[1617329244047,0.1482,59071.0,59044.0,1.351319]
[1617329244251,0.1482,59071.0,59056.0,0.006]
[1617329244252,0.1502,59071.0,59056.0,0.006]
[1617329244448,0.1482,59071.0,59057.0,0.00303724]
[1617329244649,0.0014,59071.0,59057.0,0.381813]
[1617329245049,0.0014,59071.0,59058.0,0.455]
[1617329245249,0.0002,59074.0,59060.0,0.38610075]
[1617329245449,0.0002,59074.0,59072.0,0.1143701]
[1617329245650,0.0002,59074.0,59072.0,0.49890888]
[1617329245849,0.0002,59074.0,59073.0,2.407766]
[1617329246048,0.0002,59074.0,59073.0,0.857766]
[1617329246251,0.0002,59074.0,59073.0,0.60952317]
[1617329246450,1.0,59073.0,59072.0,0.168]
[1617329246651,0.387765,59072.0,59064.0,0.01]
[1617329246853,0.387765,59072.0,59057.0,0.1604]
[1617329246854,0.00123883,59075.0,59062.0,0.15210809]
[1617329247056,0.33115696,59082.0,59080.0,0.2989659]
[1617329247249,0.33115696,59082.0,59078.0,0.15809965]
[1617329247250,0.11693316,59079.0,59078.0,0.15809965]
[1617329247455,1.0,59084.0,59079.0,0.4]
[1617329247650,0.998297,59084.0,59080.0,0.192]
[1617329247851,0.998297,59084.0,59078.0,0.00608905]
[1617329247852,0.387751,59083.0,59078.0,0.00608905]
[1617329248050,0.387751,59083.0,59078.0,0.00108905]
[1617329248051,0.993188,59082.0,59078.0,0.00108905]
[1617329248252,0.387751,59081.0,59079.0,0.022]
[1617329248453,0.00061505,59085.0,59079.0,0.022]
[1617329248652,0.002,59081.0,59080.0,0.387746]
[1617329249179,0.993188,59084.0,59077.0,0.00189698]
[1617329249180,0.853228,59084.0,59077.0,0.00189698]
[1617329249380,0.002,59084.0,59078.0,0.021]
[1617329249778,0.002,59084.0,59083.0,0.27341469]
[1617329249981,1.152,59084.0,59083.0,0.59337213]
[1617329250179,1.54034734,59084.0,59083.0,0.59337213]
[1617329250378,0.39034734,59084.0,59082.0,0.44619097]
[1617329250580,0.00260134,59084.0,59083.0,3.21078809]
[1617329250781,0.00260134,59084.0,59083.0,3.74595377]
[1617329250979,0.00060134,59084.0,59083.0,1.72595377]
[1617329254949,0.002,59090.0,59083.0,1.72595377]
[1617329254951,0.853228,59094.0,59091.0,0.00304347]
[1617329255126,0.387746,59092.0,59091.0,0.00304347]
[1617329255326,1.242974,59092.0,59091.0,0.02111964]
[1617329255529,1.482974,59092.0,59091.0,0.00111964]
[1617329255726,1.532974,59092.0,59091.0,0.00111964]
[1617329255926,1.63684486,59092.0,59091.0,0.00111964]
[1617329256129,1.88684486,59092.0,59088.0,0.46111964]
[1617329256327,1.18206006,59091.0,59088.0,0.46111964]
[1617329256528,2.410129,59089.0,59088.0,0.45111964]
[1617329256729,3.263357,59089.0,59088.0,0.45111964]
[1617329256930,3.233357,59089.0,59088.0,0.45111964]
[1617329257173,3.233357,59089.0,59088.0,0.89692757]
[1617329257174,3.173357,59089.0,59088.0,0.89692757]
[1617329257771,3.543357,59089.0,59088.0,0.89692757]
[1617329257973,3.783357,59089.0,59088.0,0.89692757]
[1617329258173,3.833357,59089.0,59088.0,0.45368211]
[1617329258373,0.23861317,59099.0,59088.0,0.45368211]
[1617329258574,0.0014,59247.0,59088.0,0.45368211]
[1617329258772,0.0006,59123.0,59088.0,0.45368211]
[1617329258972,0.382751,59089.0,59088.0,0.45368211]
[1617329259179,0.002,59100.0,59094.0,0.006]
[1617329259376,0.002,59098.0,59088.0,0.89924576]
[1617329259574,0.154,59105.0,59088.0,0.45368211]
[1617329259575,0.20160346,59105.0,59088.0,0.45368211]
[1617329259775,0.153,59105.0,59088.0,0.66927229]
[1617329259975,0.153,59105.0,59088.0,0.89924073]
[1617329260376,0.153,59105.0,59088.0,0.89424073]
[1617329260778,0.253966,59097.0,59088.0,0.89424073]
[1617329260977,0.255966,59097.0,59088.0,0.44868211]
[1617329261177,0.305966,59097.0,59088.0,0.44868211]
[1617329261377,0.047,59097.0,59088.0,0.48437825]
[1617329261577,0.002,59097.0,59088.0,0.48437825]
[1617329261775,0.108,59098.0,59088.0,0.48437825]
[1617329261977,0.253992,59093.0,59088.0,0.48437825]
[1617329262177,0.29941234,59093.0,59088.0,0.47437825]
[1617329262376,0.29941234,59093.0,59088.0,0.53437825]
[1617329262576,0.106935,59092.0,59088.0,0.56437825]
[1617329262786,0.05042034,59093.0,59088.0,0.56437825]
[1617329262982,0.05042034,59093.0,59088.0,0.59437825]
[1617329263784,0.10775712,59102.0,59089.0,0.155]
[1617329263984,0.10975712,59102.0,59088.0,0.59437825]
[1617329264183,0.15975712,59102.0,59088.0,0.59437825]
[1617329264585,0.15975712,59102.0,59088.0,1.04043508]
[1617329264790,0.15975712,59102.0,59088.0,3.508e-05]
[1617329264987,2.40113,59089.0,59087.0,2.883e-05]
[1617329265186,0.66451802,59088.0,59075.0,0.21952543]
[1617329265415,0.66451802,59088.0,59061.0,0.30709385]
[1617329265416,2.218,59087.0,59056.0,0.00303724]
[1617329265612,0.131,59076.0,59047.0,0.00303724]
[1617329265818,0.131,59076.0,59057.0,0.12372926]
[1617329265819,0.194089,59062.0,59057.0,0.12372926]
[1617329266013,0.194089,59062.0,59048.0,0.1237099]
[1617329266014,0.31008702,59061.0,59048.0,0.1237099]
[1617329266215,0.03921694,59063.0,59049.0,2.17373337]
[1617329266415,0.00353383,59063.0,59050.0,0.00303724]
[1617329266810,0.00353383,59063.0,59051.0,0.42839457]
[1617329267012,0.254077,59063.0,59052.0,0.12883674]
[1617329267210,0.254077,59063.0,59054.0,0.11841602]
[1617329267211,0.592397,59063.0,59054.0,0.11841602]
[1617329267409,0.642397,59063.0,59054.0,0.11841602]
[1617329267611,0.642397,59063.0,59052.0,0.11842391]
[1617329267813,0.642397,59063.0,59055.0,0.11842859]
[1617329268029,0.642397,59063.0,59047.0,0.1184052]
[1617329268628,0.642397,59063.0,59048.0,1.0]
[1617329268831,0.33832,59063.0,59049.0,0.28427794]
[1617329269031,0.338785,59076.0,59051.0,0.393406]
[1617329269232,0.16,59081.0,59053.0,0.162]
[1617329269431,0.16,59081.0,59058.0,0.0042]
[1617329269632,0.169,59080.0,59064.0,0.0058]
[1617329269832,0.169,59080.0,59065.0,0.11905583]
[1617329270230,0.414002,59081.0,59065.0,0.11905583]
[1617329270652,0.16,59081.0,59065.0,0.11905583]
[1617329271653,0.421977,59086.0,59068.0,0.253964]
[1617329271853,0.168,59086.0,59069.0,0.3713305]
[1617329272114,0.168,59086.0,59070.0,0.11712754]
[1617329273315,0.168,59086.0,59058.0,0.11719442]
[1617329273516,0.42198,59086.0,59064.0,0.006]
[1617329273719,0.42198,59086.0,59059.0,0.25204124]
[1617329273917,0.00303724,59085.0,59065.0,0.10720469]
[1617329274116,0.4,59084.0,59066.0,0.11706203]
[1617329274316,0.00303724,59083.0,59066.0,0.11706203]
[1617329274514,0.05,59084.0,59059.0,0.25204124]
[1617329274714,0.254017,59077.0,59059.0,0.24704124]
[1617329274916,0.0002,59079.0,59057.0,2.05]
[1617329275117,0.00303724,59078.0,59057.0,2.05]
[1617329275316,0.0002,59079.0,59064.0,0.006]
[1617329275516,0.0002,59079.0,59059.0,0.49408488]
[1617329275717,0.0002,59079.0,59060.0,0.11335307]
[1617329276118,0.00303724,59078.0,59060.0,0.11335307]
[1617329276317,0.32603724,59078.0,59052.0,0.11076649]
[1617329276516,0.37603724,59078.0,59061.0,0.10708679]
[1617329276717,0.37603724,59078.0,59051.0,0.10706641]
[1617329276917,0.25403,59075.0,59054.0,0.25403]
[1617329277116,0.00303724,59074.0,59054.0,0.25403]
[1617329277318,0.00303724,59074.0,59055.0,0.10707058]
[1617329278118,0.00303724,59078.0,59053.0,0.10707014]
[1617329278321,0.38696024,59079.0,59053.0,1.0]
[1617329278535,0.254045,59072.0,59058.0,0.006]
[1617329278734,0.254045,59072.0,59059.0,0.00303724]
[1617329278933,0.338923,59079.0,59060.0,2.05]
[1617329279133,0.0002,59079.0,59061.0,0.38373799]
[1617329279335,0.0002,59083.0,59062.0,0.10340668]
[1617329279532,0.0002,59083.0,59063.0,0.00303724]
[1617329279735,0.0002,59083.0,59064.0,0.225]
[1617329279934,0.0002,59083.0,59065.0,0.0046]
[1617329280135,0.0002,59083.0,59066.0,0.35735331]
[1617329280531,0.0002,59083.0,59067.0,0.10331534]
[1617329281159,0.04520948,59085.0,59070.0,0.0054]
[1617329281356,0.04520948,59085.0,59075.0,0.253949]
[1617329281556,0.01766246,59092.0,59077.0,0.0046]
[1617329281955,0.01766246,59092.0,59078.0,0.10318991]
[1617329282157,0.581977,59095.0,59078.0,0.10318991]
[1617329282558,1.0,59094.0,59078.0,0.10318991]
[1617329282759,1.15,59094.0,59068.0,0.00303724]
[1617329282956,2.05,59093.0,59061.0,0.87082945]
[1617329283157,0.00303724,59092.0,59065.0,0.004]
[1617329283558,0.00303724,59092.0,59066.0,0.26726641]
[1617329283806,0.00303724,59092.0,59067.0,0.38070075]
[1617329283993,0.254008,59081.0,59068.0,0.10322397]
[1617329284194,0.254008,59081.0,59067.0,0.10325387]
[1617329284393,0.304008,59081.0,59069.0,0.10326894]
[1617329284595,0.304008,59081.0,59068.0,0.10328856]
[1617329284795,0.254008,59081.0,59068.0,0.10328856]
[1617329284993,0.254008,59081.0,59065.0,0.00280643]
[1617329284994,0.254008,59081.0,59070.0,0.10327401]
[1617329285192,0.254008,59081.0,59069.0,0.10324236]
[1617329285394,0.253972,59085.0,59071.0,0.10318166]
[1617329285594,0.253972,59085.0,59070.0,0.10319978]
[1617329285794,0.253972,59085.0,59073.0,0.16]
[1617329285996,0.253972,59085.0,59071.0,0.47009992]
[1617329286195,0.253972,59085.0,59074.0,0.10320063]
[1617329286404,0.1,59078.0,59072.0,0.10319707]
[1617329286604,0.1,59078.0,59077.0,5.0]
[1617329286803,0.1,59078.0,59077.0,5.10315537]
[1617329287255,0.1,59078.0,59077.0,5.0]
[1617329289254,0.1,59078.0,59077.0,4.13963549]
[1617329290058,0.47265606,59078.0,59077.0,4.13963549]
[1617329290259,2.52265606,59078.0,59077.0,4.1424421]
[1617329290458,2.83599541,59078.0,59077.0,4.1424421]
[1617329290654,2.835,59078.0,59077.0,4.1424421]
[1617329291056,0.785,59078.0,59077.0,4.1424421]
[1617329291255,1.1,59078.0,59077.0,4.1424421]
[1617329291660,0.1,59078.0,59077.0,4.1424421]
[1617329292059,0.095,59078.0,59077.0,4.1424421]
[1617329292659,0.095,59078.0,59077.0,4.5824421]
[1617329294477,0.095,59078.0,59077.0,4.1424421]
[1617329294677,0.09,59078.0,59077.0,4.1424421]
[1617329295477,0.09656798,59078.0,59077.0,4.1424421]
[1617329299650,0.09656798,59078.0,59077.0,4.1374421]
[1617329300048,0.09656798,59078.0,59077.0,4.7024421]
[1617329301952,0.09156798,59078.0,59077.0,4.7024421]
[1617329302250,0.09156798,59078.0,59077.0,5.1674421]
[1617329304901,0.07878798,59078.0,59077.0,4.1374421]
[1617329305300,0.07878798,59078.0,59077.0,4.1274421]
[1617329306500,0.06181798,59078.0,59077.0,4.1274421]
[1617329307103,0.06181798,59078.0,59077.0,4.1137651]
[1617329308104,0.06181798,59078.0,59077.0,4.2837651]
[1617329308504,0.06181798,59078.0,59077.0,4.1137651]
[1617329308708,0.06181798,59078.0,59077.0,5.7908151]
[1617329308911,0.045844,59078.0,59077.0,6.35595644]
[1617329309110,0.04484798,59078.0,59077.0,6.05595644]
[1617329309307,0.04484798,59078.0,59077.0,7.31756244]
[1617329309505,0.04484798,59078.0,59077.0,6.92995644]
[1617329309907,0.04457798,59078.0,59077.0,6.92995644]
[1617329310329,0.03708798,59078.0,59077.0,6.92995644]
[1617329310528,0.03644798,59078.0,59077.0,7.13295644]
[1617329310928,0.03644798,59078.0,59077.0,6.9988151]
[1617329311131,0.03644798,59078.0,59077.0,5.7958151]
[1617329311531,0.03644798,59078.0,59077.0,6.7958151]
[1617329311728,0.03644798,59078.0,59077.0,5.8358151]
[1617329311930,0.03644798,59078.0,59077.0,5.7958151]
[1617329312533,0.03644798,59078.0,59077.0,6.7958151]
[1617329312756,0.03644798,59078.0,59077.0,6.8358151]
[1617329313749,0.03644798,59078.0,59077.0,6.7958151]
[1617329313952,0.03644798,59078.0,59077.0,5.7958151]
[1617329314353,0.03644798,59078.0,59077.0,5.5928151]
[1617329315781,0.02644798,59078.0,59077.0,5.59537805]
[1617329315981,0.02644798,59078.0,59077.0,5.49537805]
[1617329317662,0.02644798,59078.0,59077.0,5.52637805]
[1617329319062,0.02644798,59078.0,59077.0,6.56637805]
[1617329319263,0.02544798,59078.0,59077.0,7.11098405]
[1617329319662,0.02044798,59078.0,59077.0,7.07498405]
[1617329319863,0.02044798,59078.0,59077.0,7.32890205]
[1617329320063,0.02044798,59078.0,59077.0,6.16429605]
[1617329320461,0.01944798,59078.0,59077.0,6.16429605]
[1617329320667,0.01944798,59078.0,59077.0,7.16429605]
[1617329321464,0.01844798,59078.0,59077.0,7.16429605]
[1617329322263,0.01844798,59078.0,59077.0,6.16429605]
[1617329322264,0.01744798,59078.0,59077.0,6.16429605]
[1617329322464,0.01744798,59078.0,59077.0,6.15929605]
[1617329322666,0.01744798,59078.0,59077.0,6.10329605]
[1617329323065,0.01644798,59078.0,59077.0,5.93629605]
[1617329323267,0.01644798,59078.0,59077.0,6.32390205]
[1617329323666,0.01644798,59078.0,59077.0,5.93629605]
[1617329323867,0.01544798,59078.0,59077.0,6.10529605]
[1617329324271,0.01544798,59078.0,59077.0,5.93629605]
[1617329324472,0.01444798,59078.0,59077.0,5.48537805]
[1617329325266,0.01344798,59078.0,59077.0,5.48537805]
[1617329326086,0.01244798,59078.0,59077.0,5.64937805]
[1617329326287,0.01244798,59078.0,59077.0,5.68937805]
[1617329326685,0.01144798,59078.0,59077.0,5.68937805]
[1617329327287,0.01044798,59078.0,59077.0,5.68937805]
[1617329327686,0.00944798,59078.0,59077.0,5.68937805]
[1617329327888,0.00944798,59078.0,59077.0,5.48537805]
[1617329328288,0.00844798,59078.0,59077.0,5.48537805]
[1617329328513,0.75496402,59078.0,59077.0,5.48537805]
[1617329328911,0.75396402,59078.0,59077.0,5.48537805]
[1617329329311,0.75296402,59078.0,59077.0,5.52537805]
[1617329329709,0.75296402,59078.0,59077.0,5.48537805]
[1617329329910,0.75196402,59078.0,59077.0,5.48537805]
[1617329330510,0.75096402,59078.0,59077.0,5.48537805]
[1617329331135,0.74996402,59078.0,59077.0,5.48537805]
[1617329331533,0.74896402,59078.0,59077.0,5.48537805]
[1617329332403,0.74796402,59078.0,59077.0,5.52537805]
[1617329333002,0.76896402,59078.0,59077.0,5.48537805]
[1617329333203,0.74796402,59078.0,59077.0,5.48537805]
[1617329333404,0.74796402,59078.0,59077.0,5.68237805]
[1617329333604,0.74796402,59078.0,59077.0,5.64237805]
[1617329333805,0.74796402,59078.0,59077.0,5.48537805]
[1617329334007,0.74696402,59078.0,59077.0,5.48537805]
[1617329334204,0.76796402,59078.0,59077.0,5.48537805]
[1617329334604,0.74596402,59078.0,59077.0,5.48537805]
[1617329335208,0.74496402,59078.0,59077.0,5.48537805]
[1617329335406,0.76596402,59078.0,59077.0,5.48537805]
[1617329335607,0.76596402,59078.0,59077.0,5.47537805]
[1617329335807,0.76496402,59078.0,59077.0,5.47537805]
[1617329336011,0.76496402,59078.0,59077.0,7.05998405]
[1617329336012,0.74396402,59078.0,59077.0,7.05998405]
[1617329336212,0.74296402,59078.0,59077.0,6.67237805]
[1617329336411,0.74296402,59078.0,59077.0,5.67237805]
[1617329336811,0.74196402,59078.0,59077.0,5.67237805]
[1617329337612,0.74096402,59078.0,59077.0,5.67237805]
[1617329338215,0.73996402,59078.0,59077.0,5.67237805]
[1617329338614,0.73896402,59078.0,59077.0,5.67237805]
[1617329339212,0.73796402,59078.0,59077.0,5.67237805]
[1617329340214,0.73796402,59078.0,59077.0,5.84037805]
[1617329340816,0.73796402,59078.0,59077.0,5.67237805]
[1617329341214,0.73796402,59078.0,59077.0,5.68337805]
[1617329341642,0.73796402,59078.0,59077.0,9.68337805]
[1617329342036,0.73796402,59078.0,59077.0,9.67237805]
[1617329343237,0.73696402,59078.0,59077.0,9.67237805]
[1617329343937,0.73596402,59078.0,59077.0,9.67237805]
[1617329344581,0.73096402,59078.0,59077.0,9.67237805]
[1617329344779,0.72996402,59078.0,59077.0,9.67237805]
[1617329344979,0.72496402,59078.0,59077.0,9.67237805]
[1617329345179,0.72496402,59078.0,59077.0,9.83907907]
[1617329345382,0.72496402,59078.0,59077.0,10.83907907]
[1617329345583,0.72496402,59078.0,59077.0,9.82707907]
[1617329345782,0.72496402,59078.0,59077.0,9.82207907]
[1617329347863,0.72496402,59078.0,59077.0,9.66737805]
[1617329349256,0.72496402,59078.0,59077.0,10.05498405]